[Event "MPL-4 Indian Chess Tour 2022"]
[Site "Chess24"]
[Date "2022.09.27"]
[Round "3.8"]
[White "Aronyak Ghosh"]
[Black "Iniyan, P."]
[Result "1/2-1/2"]
[ECO "E63"]
[WhiteElo "2519"]
[BlackElo "2556"]
[Annotator "TA"]
[PlyCount "100"]
[EventDate "2022.09.29"]
[EventType "tourn (rapid)"]
[EventCountry "NET"]
[SourceTitle "playchess.com"]
[Source "ChessBase"]
[SourceQuality "1"]
[WhiteTeam "India"]
[BlackTeam "India"]
[WhiteTeamCountry "IND"]
[BlackTeamCountry "IND"]
[TimeControl "900+10"]

{[%evp 14,100,23,22,22,17,19,21,27,14,13,22,9,12,20,-5,29,26,39,10,10,-7,-6,-26,-17,-26,-20,-27,0,-6,-1,-8,0,-36,-25,-169,-172,-167,-73,-56,-23,-40,54,-52,0,-35,71,70,39,41,114,115,112,47,48,10,22,-245,-60,-60,-63,-402,-163,-275,-256,-551,-130,-114,-109,-94,0,0,0,-7,0,-119,-147,-199,0,0,0,0,0,0,0,0,0,0,0]} 1. Nf3 {[%emt 0:00:00]} Nf6 {[%emt 0:00:00]} 2. c4 {[%emt 0:00:17]} g6 {[%emt 0:00:03]} 3. g3 {[%emt 0:00:02]} Bg7 {[%emt 0:00:00]} 4. Bg2 {[%emt 0:00:01]} O-O {[%emt 0:00:01]} 5. O-O {[%emt 0:00:00]} d6 {[%emt 0:00:01]} 6. d4 {[%emt 0:00:01]} Nc6 {[%emt 0:00:10]} 7. Nc3 {[%emt 0:00:02]} a6 {[%emt 0:00:01]} 8. Bf4 $1 {[%emt 0:01:24][%mdl 4] 8.Bf4 is setting a new trend.} Bd7 {[%emt 0:00:11] E63: King's Indian: Fianchetto: Panno Variation with 7...a6.} 9. Rc1 {[%emt 0:01:12]} Rb8 {[%emt 0:00:06]} 10. a3 {[%emt 0:00:04]} h6 {[%emt 0:01:23]} 11. h3 {[%emt 0:00:42] [#]} (11. d5 $5 {[%cal Rd5c6]} Na5 12. Nd2 $11) 11... g5 $146 {[%emt 0:00:15]} ({Predecessor:} 11... Qc8 12. Kh2 b5 13. cxb5 axb5 14. b4 g5 15. Bd2 e5 16. dxe5 dxe5 17. Ne1 e4 {1-0 (65) Martinez Alcantara,J (2561)-Neef,M (2463) Barcelona 2018}) 12. Be3 {[%emt 0:00:03]} g4 {[%emt 0:01:35]} 13. hxg4 {[%emt 0:00:14]} Nxg4 {[%emt 0:00:00]} 14. Qd2 {[%emt 0:00:00]} (14. Qd3 {is interesting.} e5 15. dxe5 Ncxe5 16. Nxe5 Nxe5 17. Qe4) 14... Nxe3 {[%emt 0:00:46]} 15. Qxe3 {[%emt 0:00:03]} e6 {[%emt 0:02:30][%cal Be7e6,Be6e5][%mdl 32]} 16. d5 {[%emt 0:02:00]} Ne7 {[%emt 0:02:19]} 17. Bh3 {[%emt 0:00:25][%cal Rd5e6]} e5 {[%emt 0:00:53]} 18. Bxd7 {[%emt 0:00:05]} Qxd7 {[%emt 0:00:00]} 19. Kg2 {[%emt 0:00:33]} b5 {[%emt 0:00:34]} 20. b4 {[%emt 0:01:35]} bxc4 {[%emt 0:00:13]} 21. Qe4 {[%emt 0:00:03]} Rfc8 {[%emt 0:01:20]} 22. Rfd1 {[%emt 0:03:03]} c5 {[%emt 0:01:20]} 23. dxc6 {[%emt 0:00:12]} Qxc6 {[%emt 0:00:03]} (23... Rxc6 24. Nxe5 $1 Bxe5 25. Qxe5 $16) 24. Qg4 {[%emt 0:01:41]} (24. Qh4 $11 {and White has nothing to worry.} Rc7 25. e4) 24... f5 $19 {[%emt 0:00:56]} 25. Qh4 {[%emt 0:00:01]} Rb7 {[%emt 0:00:08]} (25... Ng6 26. Qh3 Ne7 27. e4 $15) (25... Rc7 $19 {is more deadly. ...d5 is the strong threat.} 26. e3 d5) 26. e4 $17 {[%emt 0:00:36] Prevents d5.} Rf8 {[%emt 0:02:27]} 27. Nd5 $1 {[%emt 0:00:46] Against Rc7} Rf7 {[%emt 0:00:36]} (27... Nxd5 $15 28. exd5 Qa4 29. Qxc4 Qxa3) 28. Ng1 {[%emt 0:00:34] Pair of Knights!} ({White should play} 28. exf5 $1 $14 Nxd5 29. Rxc4) 28... Kh8 {[%emt 0:01:02]} (28... Nxd5 $15 29. exd5 Qa4 30. Qxc4 Qxa3 31. Qc8+ Kh7) 29. Ne2 {[%emt 0:00:11]} fxe4 {[%emt 0:00:05]} (29... Nxd5 $1 $15 {stays ahead.} 30. Rxd5 (30. exd5 Qa4 $17) 30... Rf8) 30. Qxe4 $16 {[%emt 0:00:17]} Nxd5 {[%emt 0:00:01]} 31. Rxd5 {[%emt 0:00:09]} Rb5 {[%emt 0:00:24]} (31... Rbc7 $14) 32. Nc3 $1 {[%emt 0:00:24][%mdl 1024] White has strong compensation. White is more active.} (32. Rxe5 $6 Qxe4+ 33. Rxe4 d5 34. Re8+ (34. Re6 a5 $11) 34... Kh7 $11) 32... Rb8 {[%emt 0:00:01][%cal Bb5b8,Bb8f8,Bf8f6][%mdl 32]} 33. Rcd1 {[%emt 0:00:16]} (33. Rd2 $16 Rc8 34. Qxc6 Rxc6 35. a4) 33... Rbf8 $14 {[%emt 0:00:04]} 34. R1d2 {[%emt 0:00:16]} (34. R5d2 $5 {[%cal Re4c6]} Qb6 35. Rf1 $11) 34... Rf6 {[%emt 0:00:02]} (34... Rf3 $5 {[%cal Rf3c3]} 35. Rxd6 Rxf2+ 36. Rxf2 Rxf2+ 37. Kxf2 Qxd6 $14) 35. Qe3 $2 {[%emt 0:00:10][%mdl 8192]} (35. Rc2 $11) 35... h5 $2 {[%emt 0:00:09]} (35... Rf3 $1 $19 {[%cal Rf3e3]} 36. Qxf3 Rxf3 37. Kxf3 e4+ 38. Nxe4 c3 39. Nxc3 Bxc3) 36. Qg5 $15 {[%emt 0:01:13]} Rf5 {[%emt 0:00:43]} 37. Qe7 {[%emt 0:00:05][%mdl 8192]} (37. Qh4 $1 $15) 37... Bh6 {[%emt 0:00:02]} (37... Rf3 $142 38. Qxd6 Qxd6 39. Rxd6 Rxc3) 38. Re2 {[%emt 0:00:21]} (38. f4 {was worth a try.}) 38... R8f6 $19 {[%emt 0:00:02]} 39. Kg1 $2 {[%emt 0:00:19]} (39. Qd8+ Bf8 40. Kf1) 39... Rf3 $2 {[%emt 0:00:20]} (39... Bf8 $19 {and Black stays clearly on top.} 40. Qd8 h4) 40. Ne4 $17 {[%emt 0:00:11]} Bf8 {[%emt 0:00:02]} ({Much worse is} 40... Qxd5 $6 41. Nxf6 Qd3 42. Kh2 $11) 41. Qd8 {[%emt 0:00:13]} Qxd5 {[%emt 0:00:06]} ({Better is} 41... Rg6 $17 42. Re3 Rf7) 42. Nxf6 $11 {[%emt 0:00:01]} Qf7 {[%emt 0:00:01]} (42... Qd1+ $2 43. Kg2 Rxf6 44. Qxf6+ Bg7 45. Qf3 $18) 43. Ne4 $40 {[%emt 0:00:02][%mdl 128] White is up to no good.} Rd3 {[%emt 0:00:13]} 44. Ng5 {[%emt 0:00:57] [#]} (44. Qc8 $11 {remains equal.}) 44... Qf5 $1 $17 {[%emt 0:00:03] And now ...c3 would win.} 45. Qe8 {[%emt 0:00:08] [#]} (45. Ne6 $17 Qxe6 46. Qxf8+ Kh7 47. a4) 45... Qxg5 $2 {[%emt 0:01:06]} ({Weaker is} 45... Rxa3 46. Ne6 Kg8 47. Nxf8 $11) (45... h4 $1 $19 {[%cal Rh4g3]} 46. gxh4 c3) 46. Qxf8+ $11 {[%emt 0:00:01] The position is equal.} Qg8 {[%emt 0:00:01]} 47. Qh6+ {[%emt 0:00:01]} Qh7 {[%emt 0:00:01]} 48. Qf8+ {[%emt 0:00:01]} Qg8 {[%emt 0:00:01]} 49. Qh6+ {[%emt 0:00:05]} Qh7 {[%emt 0:00:01]} 50. Qf8+ {[%emt 0:00:01]} Qg8 {[%emt 0:00:01] Weighted Error Value: White=0.55/Black=0.54} 1/2-1/2

[Event "MPL-4 Indian Chess Tour 2022"]
[Site "Chess24"]
[Date "2022.09.27"]
[Round "4.1"]
[White "Raja Harshit"]
[Black "Iniyan, P."]
[Result "0-1"]
[ECO "B96"]
[WhiteElo "2459"]
[BlackElo "2556"]
[Annotator "TA"]
[PlyCount "42"]
[EventDate "2022.09.29"]
[EventType "tourn (rapid)"]
[EventCountry "NET"]
[SourceTitle "playchess.com"]
[Source "ChessBase"]
[SourceQuality "1"]
[WhiteTeam "India"]
[BlackTeam "India"]
[WhiteTeamCountry "IND"]
[BlackTeamCountry "IND"]
[TimeControl "900+10"]

{[%evp 17,42,29,13,0,0,-28,-18,-47,-22,-175,-181,-379,-372,-383,-390,-379,-387,-623,-607,-619,-613,-652,-654,-694,-709,-770,-747]} 1. e4 {[%emt 0:00:00]} c5 {[%emt 0:00:00]} 2. Nf3 {[%emt 0:00:03]} d6 {[%emt 0:00:01]} 3. d4 {[%emt 0:00:01]} cxd4 {[%emt 0:00:00]} 4. Nxd4 {[%emt 0:00:00]} Nf6 {[%emt 0:00:00]} 5. Nc3 {[%emt 0:00:01]} a6 {[%emt 0:00:00]} 6. Bg5 {[%emt 0:00:01]} e6 {[%emt 0:00:04]} 7. f4 {[%emt 0:00:10]} Nbd7 {[%emt 0:00:01]} 8. Qe2 {[%emt 0:00:02]} Qc7 {[%emt 0:00:02]} 9. O-O-O {[%emt 0:00:03]} b5 {[%emt 0:00:03][%cal Bb7b5,Bb5b4][%mdl 32]} 10. g3 {[%emt 0:00:02] B96: Sicilian Najdorf: 6 Bg5 e6 7 f4, lines other than 7...Qb6 and 7...Be7.} b4 {[%emt 0:01:48]} 11. Nb1 {[%emt 0:00:05]} Bb7 {[%emt 0:00:10]} 12. Bg2 {[%emt 0:00:03] [#] The position is equal.} Rc8 $5 $146 {[%emt 0:00:32][%mdl 8] New and interesting.} ({Predecessor:} 12... Be7 13. Rhe1 h6 14. Bxf6 Bxf6 15. Qd2 Rb8 16. Nb3 Be7 17. Qxb4 O-O 18. Qc3 Qb6 {1-0 (58) Mamedov,R (2627)-Swiercz,D (2456) Gaziantep 2008}) 13. e5 $2 {[%emt 0:00:25] [#]} (13. Rhe1 $11) 13... Bxg2 $19 {[%emt 0:00:21]} ({Weaker is} 13... dxe5 14. Bxb7 Qxb7 15. fxe5 $15) 14. exf6 $2 {[%emt 0:01:07]} (14. exd6 {was worth a try.} Qb7 15. Nxe6 Rxc2+ 16. Qxc2 Bxh1 17. Nc7+ Kd8 18. Nxa6) 14... Bxh1 {[%emt 0:00:08]} 15. Rxh1 {[%emt 0:02:18][%cal Od4e6]} gxf6 {[%emt 0:00:01]} 16. Bh4 {[%emt 0:00:03]} Qc4 {[%emt 0:00:08]} 17. Qe3 {[%emt 0:00:06] [#]} (17. Qxc4 Rxc4 18. Ne2) 17... e5 {[%emt 0:00:21] Black is clearly winning.} 18. Rd1 {[%emt 0:01:03]} Be7 {[%emt 0:00:04]} 19. b3 {[%emt 0:00:14]} Qc5 {[%emt 0:00:12]} 20. c4 {[%emt 0:01:04]} exd4 {[%emt 0:00:35]} 21. Rxd4 {[%emt 0:00:23]} d5 {[%emt 0:00:07] White did not feel at home in the position after the opening.  Weighted Error Value: White=0.81/Black=0.01 (flawless)} 0-1

[Event "MPL-4 Indian Chess Tour 2022"]
[Site "Chess24"]
[Date "2022.09.27"]
[Round "4.2"]
[White "Ganguly, Surya Shekhar"]
[Black "Aronyak Ghosh"]
[Result "1/2-1/2"]
[ECO "B10"]
[WhiteElo "2589"]
[BlackElo "2519"]
[Annotator "TA"]
[PlyCount "94"]
[EventDate "2022.09.29"]
[EventType "tourn (rapid)"]
[EventCountry "NET"]
[SourceTitle "playchess.com"]
[Source "ChessBase"]
[SourceQuality "1"]
[WhiteTeam "India"]
[BlackTeam "India"]
[WhiteTeamCountry "IND"]
[BlackTeamCountry "IND"]
[TimeControl "900+10"]

{[%evp 9,94,17,17,15,3,4,6,7,0,0,0,0,18,16,18,-10,-16,-24,-20,-21,8,7,0,-18,24,22,40,55,98,93,93,89,82,93,220,70,70,70,70,42,42,42,42,42,42,38,37,22,43,0,0,0,0,-1,25,25,25,25,25,24,24,24,26,26,26,26,26,32,67,67,67,67,67,67,67,67,67,67,67,67,67,54,54,35,54,35,35]} 1. e4 {[%emt 0:00:00]} c6 {[%emt 0:00:00]} 2. Nf3 {[%emt 0:00:02]} d5 {[%emt 0:00:02]} 3. d3 {[%emt 0:00:01]} Qc7 {[%emt 0:00:30]} 4. Nc3 {[%emt 0:00:06]} dxe4 {[%emt 0:00:02]} 5. dxe4 {[%emt 0:00:00]} e5 {[%emt 0:00:03]} 6. Bc4 {[%emt 0:00:01] B10: Caro-Kann: 2 d3 and 2 c4.} b5 {[%emt 0:00:02]} 7. Bb3 {[%emt 0:00:01]} h6 {[%emt 0:00:01] Against Ng5} 8. Qe2 {[%emt 0:00:03] The position is equal.} Nf6 {[%emt 0:01:18]} 9. a4 {[%emt 0:00:01]} b4 {[%emt 0:00:15]} 10. Nd1 {[%emt 0:00:01][%cal Bc3d1,Bd1e3,Be3c4][%mdl 32] [#]} Be7 $146 {[%emt 0:01:27]} ({Predecessor:} 10... Nbd7 11. Ne3 Nc5 12. Nc4 Nfd7 13. O-O Be7 14. Be3 O-O 15. Nfd2 Nxb3 16. cxb3 Nc5 {½-½ (45) Svane,F (2501)-Mendonca,L (2551) Hamburg 2022}) 11. Ne3 {[%emt 0:00:05]} O-O {[%emt 0:00:30]} 12. Nc4 {[%emt 0:00:14]} Nbd7 {[%emt 0:00:28]} 13. Be3 {[%emt 0:00:20]} Ba6 {[%emt 0:00:59]} 14. O-O-O {[%emt 0:01:47]} Nc5 {[%emt 0:00:44]} 15. Bxc5 {[%emt 0:00:45]} Bxc5 {[%emt 0:00:02]} 16. Nh4 {[%emt 0:00:49]} Rad8 {[%emt 0:00:58]} 17. Nf5 {[%emt 0:00:05]} Rxd1+ {[%emt 0:00:06]} 18. Rxd1 {[%emt 0:00:02]} Rd8 {[%emt 0:00:01] [#]} 19. Rxd8+ $1 {[%emt 0:00:50]} Qxd8 {[%emt 0:00:02]} 20. Qf3 {[%emt 0:00:00]} Bxc4 {[%emt 0:00:51]} 21. Bxc4 {[%emt 0:00:00] Black must now prevent Qg3.} g6 {[%emt 0:01:30]} (21... Kf8 $16) 22. Qg3 {[%emt 0:03:33]} ({Only move:} 22. Nxh6+ $18 Kg7 23. Nxf7) 22... Kf8 $14 {[%emt 0:00:05]} 23. Qxe5 {[%emt 0:00:28]} ({But not} 23. Nxh6 $2 Nxe4 24. Qd3 (24. Qxe5 $2 Qd2+ 25. Kb1 Qe1+ 26. Ka2 Nc3+ 27. bxc3 Qxe5 $19) 24... Qg5+ 25. Kb1 Nd2+ 26. Ka2 Qxh6 $19) 23... Bxf2 {[%emt 0:00:04]} 24. Nd6 {[%emt 0:00:40] White is more active.} (24. Qf4 $5 {[%cal Rf4h6]} Nxe4 25. Qxh6+ (25. Qxe4 Qg5+ 26. Kd1 Qxf5 $11) 25... Ke8 26. Ng7+ Ke7 27. Qf4 Qd2+ 28. Qxd2 Nxd2 29. Kxd2 $14) 24... Ng4 {[%emt 0:01:39]} 25. Qh8+ {[%emt 0:02:25]} Ke7 {[%emt 0:00:02]} 26. Qxd8+ {[%emt 0:00:22]} ({Not} 26. Nxf7 $2 Be3+ 27. Kb1 Qxh8 28. Nxh8 Ne5 $19) 26... Kxd8 {[%emt 0:00:01]} 27. Nxf7+ {[%emt 0:00:33][%mdl 4096] Endgame KBN-KBN} Ke7 {[%emt 0:00:03]} 28. Kd2 {[%emt 0:00:08]} Bd4 {[%emt 0:00:42]} 29. c3 {[%emt 0:01:17]} bxc3+ {[%emt 0:00:03]} 30. bxc3 {[%emt 0:00:00]} Bg7 {[%emt 0:00:08]} 31. h3 {[%emt 0:00:08]} Ne5 {[%emt 0:01:12]} 32. Nxe5 {[%emt 0:00:02]} Bxe5 $11 {[%emt 0:00:00] KB-KB} 33. Kd3 {[%emt 0:00:37]} a5 {[%emt 0:00:05]} 34. Bg8 {[%emt 0:00:11]} h5 {[%emt 0:00:37]} 35. Kc4 {[%emt 0:00:10]} h4 {[%emt 0:00:04]} 36. Kc5 {[%emt 0:00:12]} Bxc3 {[%emt 0:00:13]} 37. Kxc6 {[%emt 0:00:01]} g5 {[%emt 0:00:01]} 38. Kd5 {[%emt 0:00:20]} Be1 {[%emt 0:00:03] White is slightly better.} 39. Ke5 {[%emt 0:00:10]} Bc3+ {[%emt 0:00:02]} 40. Kf5 {[%emt 0:00:01]} Bd2 {[%emt 0:00:00]} 41. Bc4 {[%emt 0:00:05]} Bc1 {[%emt 0:00:01]} 42. Be2 {[%emt 0:00:23]} Bd2 {[%emt 0:00:03]} 43. Bg4 {[%emt 0:00:00]} Bc1 {[%emt 0:00:01]} 44. e5 {[%emt 0:00:03]} Bd2 {[%emt 0:00:01]} 45. e6 {[%emt 0:00:00]} Bc1 {[%emt 0:00:06]} 46. Ke5 {[%emt 0:00:07]} Bd2 {[%emt 0:00:00]} 47. Kd5 {[%emt 0:00:10]} Be1 {[%emt 0:00:03] Weighted Error Value: White=0.10 (very precise) /Black=0.12 (very precise)} 1/2-1/2

[Event "MPL-4 Indian Chess Tour 2022"]
[Site "Chess24"]
[Date "2022.09.27"]
[Round "4.4"]
[White "Mohammad Nubairshah Shaikh"]
[Black "Vaibhav, Suri"]
[Result "0-1"]
[ECO "E18"]
[WhiteElo "2461"]
[BlackElo "2600"]
[Annotator "TA"]
[PlyCount "106"]
[EventDate "2022.09.29"]
[EventType "tourn (rapid)"]
[EventCountry "NET"]
[SourceTitle "playchess.com"]
[Source "ChessBase"]
[SourceQuality "1"]
[WhiteTeam "India"]
[BlackTeam "India"]
[WhiteTeamCountry "IND"]
[BlackTeamCountry "IND"]
[TimeControl "900+10"]

{[%evp 24,106,47,32,66,0,15,2,6,3,12,-52,-42,-79,-29,-47,-47,-81,-78,-74,-87,-87,-87,-87,-49,-87,-87,-87,-87,-87,-87,-87,-80,-197,-196,-199,-202,-261,-255,-255,-247,-268,-160,-245,-251,-254,-214,-404,-404,-404,0,-256,0,-404,-404,-404,-404,-558,-546,-502,-412,-412,-412,-786,-758,-594,-419,-995,-823,-5832,-2385,-1724,-1842,-29965,-29961,-12792,-8380,-29979,-29980,-29980,-29981,-29980,-29981,-29986,-29985]} 1. Nf3 {[%emt 0:00:00]} Nf6 {[%emt 0:00:00]} 2. c4 {[%emt 0:00:14]} e6 {[%emt 0:00:02]} 3. g3 {[%emt 0:00:02]} d5 {[%emt 0:00:01]} 4. Bg2 {[%emt 0:00:01]} b6 {[%emt 0:00:13]} 5. O-O {[%emt 0:00:22]} Bb7 {[%emt 0:00:03]} 6. cxd5 {[%emt 0:00:04]} exd5 {[%emt 0:00:03]} 7. d4 {[%emt 0:00:01]} Be7 {[%emt 0:00:02]} 8. Nh4 {[%emt 0:00:52]} Qd7 {[%emt 0:02:32]} 9. Qc2 {[%emt 0:00:55]} Ne4 {[%emt 0:01:11]} 10. Nf3 {[%emt 0:01:24]} O-O {[%emt 0:00:11]} 11. Ne5 {[%emt 0:00:13]} Qd8 {[%emt 0:00:55]} 12. Nc3 {[%emt 0:00:02]} Nxc3 {[%emt 0:01:54]} 13. Qxc3 {[%emt 0:00:03]} c5 {[%emt 0:00:13] E18: Queen's Indian: Old Main Line (4 g3 Bb7 5 Bg2 Be7 6 0-0 0-0 7 Nc3).} 14. Rd1 {[%emt 0:00:17] [#]} (14. dxc5 $14 d4 15. Qb3 Bxg2 16. Kxg2) 14... Bf6 $146 {[%emt 0:02:34]} ({Predecessor:} 14... cxd4 15. Qxd4 Bc5 16. Qf4 Qe7 17. Bxd5 Bxd5 18. Rxd5 f6 19. Nd3 Qxe2 20. Bd2 Qe6 21. Qc4 Nd7 22. Re1 Qf7 {½-½ (30) Krastanov,G (2192)-Hristov,P (2022) Sofia 2010}) 15. dxc5 {[%emt 0:05:09]} Nd7 {[%emt 0:02:22] The position is equal.} 16. Bf4 {[%emt 0:00:27]} Nxc5 {[%emt 0:00:02]} 17. Be3 {[%emt 0:07:01]} (17. Qc2 $1 $11) 17... Rc8 $1 $15 {[%emt 0:01:39] Threatens to win with ...Ne6.} 18. Bd4 {[%emt 0:00:09]} Re8 {[%emt 0:03:27]} (18... Ne6 $17 19. Qe3 Nxd4 20. Qxd4 Re8) 19. f4 {[%emt 0:00:20]} Ne6 {[%emt 0:00:13]} 20. Qe3 {[%emt 0:00:07]} Nxd4 {[%emt 0:00:04]} 21. Qxd4 {[%emt 0:00:02]} Rc2 {[%emt 0:00:12]} 22. e3 {[%emt 0:00:53]} Qc7 {[%emt 0:00:29]} 23. Bxd5 {[%emt 0:00:08]} Bxe5 {[%emt 0:00:09]} 24. fxe5 {[%emt 0:00:02] aiming for Qa4.} Bxd5 {[%emt 0:00:18]} 25. Qxd5 {[%emt 0:00:00]} h5 {[%emt 0:00:01] Black has more active pieces.} ({But not} 25... Rxb2 $6 26. Rac1 Rc2 27. Rxc2 Qxc2 28. Qd7 $11) 26. Qd6 {[%emt 0:00:26]} Rxe5 {[%emt 0:00:24] White must now prevent ...Qxd6.} 27. Qxc7 {[%emt 0:00:04]} Rxc7 $17 {[%emt 0:00:00][%mdl 4096] Endgame KRR-KRR} 28. Rd3 {[%emt 0:00:01]} (28. Rac1 $17 {is a better defense.} Rxc1 29. Rxc1) 28... Rc2 $19 {[%emt 0:00:02]} 29. b4 {[%emt 0:00:19] [#]} Rf5 $1 {[%emt 0:00:07]} 30. Rf1 {[%emt 0:00:18]} Rxf1+ {[%emt 0:00:03]} 31. Kxf1 {[%emt 0:00:00]} Rxa2 {[%emt 0:00:30] KR-KR} ({Not} 31... Rxh2 32. Ra3 $17) 32. h4 {[%emt 0:00:06]} Kh7 {[%emt 0:00:07]} ({Black should play} 32... Kf8 $19 {...a5 is the strong threat.} 33. Rc3 Ke7 34. Rc7+ Ke6) 33. Rd5 {[%emt 0:00:04] [#]} (33. b5 $17) 33... g6 $1 {[%emt 0:00:09]} 34. b5 {[%emt 0:00:24]} Kg7 {[%emt 0:00:04]} 35. Rd6 $2 {[%emt 0:00:02]} (35. Rd7 {was the only chance.}) 35... Ra5 {[%emt 0:00:07]} 36. Rd7 {[%emt 0:00:01]} Ra2 {[%emt 0:00:14]} 37. Rd6 $1 {[%emt 0:00:03]} Ra5 {[%emt 0:00:11]} (37... Rb2 $142 38. Rd7 Rxb5 39. Rxa7 Rb2) 38. Rd7 $1 {[%emt 0:00:01]} Rxb5 {[%emt 0:00:07]} 39. Rxa7 {[%emt 0:00:01]} Rb2 {[%emt 0:00:01]} 40. Rb7 {[%emt 0:00:53]} Kf6 {[%emt 0:00:00]} 41. Kg1 {[%emt 0:00:10]} Ke6 {[%emt 0:00:05]} 42. Kf1 {[%emt 0:00:02]} b5 {[%emt 0:00:03][%cal Bb6b5,Bb5b4,Bb4b3][%mdl 32]} 43. Kg1 {[%emt 0:00:22]} (43. Ke1 $142) 43... b4 {[%emt 0:00:08]} 44. Kf1 {[%emt 0:00:02]} b3 {[%emt 0:00:12]} 45. Rb5 {[%emt 0:00:02]} (45. Ke1 $142) 45... Kd6 {[%emt 0:00:08] And now ...Kc6 would win.} 46. Rb7 {[%emt 0:00:01]} Kc6 {[%emt 0:00:20]} (46... Kc5 $142 47. Ke1 Kc4 48. Rc7+ Kd3 49. Rd7+ Kxe3 50. Re7+ Kf3 51. Rxf7+ Kxg3) 47. Rb8 {[%emt 0:00:12]} Kd5 {[%emt 0:00:08]} 48. Rb7 {[%emt 0:00:09]} Ke4 {[%emt 0:00:15]} 49. Re7+ {[%emt 0:00:32]} Kd3 {[%emt 0:00:01] ( -> ...Rc2)} 50. Rxf7 {[%emt 0:00:02]} Rc2 {[%emt 0:00:11] Black mates.} 51. Rd7+ {[%emt 0:00:06]} Kxe3 {[%emt 0:00:01]} 52. Rb7 {[%emt 0:00:02]} b2 {[%emt 0:00:01]} 53. Re7+ {[%emt 0:00:15]} Kf3 {[%emt 0:00:07] Weighted Error Value: White=0.79/Black=0.30} 0-1

[Event "MPL-4 Indian Chess Tour 2022"]
[Site "Chess24"]
[Date "2022.09.27"]
[Round "4.5"]
[White "Narayanan.S.L"]
[Black "Mitrabha, Guha"]
[Result "1-0"]
[ECO "A50"]
[WhiteElo "2657"]
[BlackElo "2471"]
[Annotator "TA"]
[PlyCount "69"]
[EventDate "2022.09.29"]
[EventType "tourn (rapid)"]
[EventCountry "NET"]
[SourceTitle "playchess.com"]
[Source "ChessBase"]
[SourceQuality "1"]
[WhiteTeam "India"]
[BlackTeam "India"]
[WhiteTeamCountry "IND"]
[BlackTeamCountry "IND"]
[TimeControl "900+10"]

{[%evp 9,69,47,47,36,41,34,40,48,45,35,73,63,64,50,59,55,60,47,69,69,100,112,103,97,127,112,119,124,113,119,125,126,141,139,139,97,148,144,125,129,135,99,85,79,92,83,102,68,131,142,145,145,136,136,200,135,137,140,124,151,663,652]} 1. Nf3 {[%emt 0:00:00]} Nf6 {[%emt 0:00:00]} 2. c4 {[%emt 0:00:02]} b6 {[%emt 0:00:02]} 3. Nc3 {[%emt 0:00:10]} Bb7 {[%emt 0:00:01]} 4. d4 {[%emt 0:00:00][%cal Bd2d4,Bd4d5][%mdl 32]} g6 {[%emt 0:00:18]} 5. d5 {[%emt 0:00:07]} Bg7 {[%emt 0:00:05]} 6. e4 {[%emt 0:00:01] A50: Queen's Fianchetto Defence (1 d4 Nf6 2 c4 b6).} O-O {[%emt 0:00:01]} 7. Bd3 {[%emt 0:00:01]} d6 {[%emt 0:00:11]} 8. O-O {[%emt 0:00:01] White is slightly better.} Nbd7 {[%emt 0:00:20]} 9. Re1 {[%emt 0:00:05]} e5 {[%emt 0:00:06]} 10. Bg5 {[%emt 0:00:27][%cal Bc1g5,Bg5h4,Bh4f2][%mdl 32]} h6 {[%emt 0:00:05]} 11. Bh4 {[%emt 0:00:01] [#]} a5 $146 {[%emt 0:00:10]} ({Predecessor:} 11... g5 12. Bg3 a5 13. Nd2 Nc5 14. Bc2 Bc8 15. f3 Nh5 16. Nf1 Nf4 {0-1 (70) Sergeev,V (2447)-Zpevak,P (2362) Pardubice 2014}) 12. a3 {[%emt 0:00:03]} Qc8 {[%emt 0:01:56]} 13. b4 {[%emt 0:00:19]} Nh7 {[%emt 0:00:09]} 14. Nd2 {[%emt 0:00:06]} f5 {[%emt 0:00:38]} 15. f3 {[%emt 0:00:02]} f4 {[%emt 0:00:03]} 16. Bf2 {[%emt 0:00:04][%cal Oc4c5]} g5 {[%emt 0:00:01]} 17. c5 {[%emt 0:00:32]} bxc5 {[%emt 0:00:25]} 18. bxc5 {[%emt 0:00:02]} Nxc5 {[%emt 0:01:30]} 19. Bxc5 {[%emt 0:00:03]} dxc5 {[%emt 0:00:01]} 20. Na4 {[%emt 0:00:32]} Qe8 {[%emt 0:00:40]} 21. Nxc5 {[%emt 0:00:06] Pair of Knights!} Bc8 {[%emt 0:00:00]} 22. Qa4 {[%emt 0:02:43]} g4 {[%emt 0:00:35]} (22... Qxa4 $142 23. Nxa4 g4) 23. Qxe8 $16 {[%emt 0:00:03] White is much more active.} Rxe8 {[%emt 0:00:01]} 24. Bb5 {[%emt 0:00:02]} Rd8 {[%emt 0:00:05]} 25. Bc6 {[%emt 0:00:35]} Ra7 {[%emt 0:00:05]} 26. Rab1 $36 {[%emt 0:00:05][%mdl 2048] White is really pushing.} Bf8 {[%emt 0:00:02]} 27. Rec1 {[%emt 0:00:07] Threatens to win with Rb8.} gxf3 {[%emt 0:00:17]} 28. Nxf3 {[%emt 0:00:02] [#] And now Rb8 would win.} Ng5 {[%emt 0:00:22]} (28... Bd6 $1 $14) 29. Nxe5 {[%emt 0:02:29][%cal Od5d6]} Bxc5+ {[%emt 0:00:06]} 30. Rxc5 {[%emt 0:00:02] Hoping for Re1.} Nxe4 {[%emt 0:00:00]} 31. Rc2 {[%emt 0:00:19]} Ra6 {[%emt 0:01:45]} (31... Kg7 $16 32. Re1 Nd6) 32. Rf1 {[%emt 0:01:48]} Rb6 {[%emt 0:00:31]} 33. Rcc1 {[%emt 0:02:18]} Nd6 {[%emt 0:01:42]} 34. Rxf4 {[%emt 0:00:02]} Re8 $2 {[%emt 0:00:46] [#]} (34... Rf8 $16 35. Rxf8+ Kxf8) 35. Bxe8 {[%emt 0:00:02] Weighted Error Value: White=0.09 (flawless) /Black=0.37} 1-0